bitfinex-derivatives/quotes_BTCF0:USTF0_20250429
["timestamp","ask_amount","ask_price","bid_price","bid_amount"]
[1745886266435,0.1527,95045.0,95044.0,0.2512386]
[1745886268237,0.0327,95045.0,95044.0,0.2512386]
[1745886269229,0.1527,95045.0,95044.0,0.2512386]
[1745886271136,0.3420366,95045.0,95044.0,0.2512386]
[1745886276730,0.1225,95045.0,95044.0,0.3812386]
[1745886277241,0.0025,95045.0,95044.0,0.3812386]
[1745886277434,0.0025,95045.0,95044.0,0.2512386]
[1745886277830,0.0355,95045.0,95044.0,0.2512386]
[1745886279136,0.3448366,95045.0,95044.0,0.2512386]
[1745886279541,0.3448366,95045.0,95044.0,0.3812386]
[1745886281342,0.1918366,95045.0,95044.0,0.3812386]
[1745886281841,0.01064881,95054.0,95053.0,0.1893206]
[1745886282042,0.19996751,95054.0,95053.0,0.3493206]
[1745886282245,0.1893187,95054.0,95053.0,0.3493206]
[1745886283244,0.3093187,95054.0,95053.0,0.3493206]
[1745886284039,0.3113187,95054.0,95053.0,0.3493206]
[1745886285752,0.122,95054.0,95053.0,0.3493206]
[1745886287755,0.121,95054.0,95053.0,0.3493206]
[1745886288249,0.001,95054.0,95053.0,0.3493206]
[1745886289153,0.12121657,95054.0,95053.0,0.3493206]
[1745886289657,0.08017014,95065.0,95064.0,0.1892987]
[1745886290244,0.20017014,95065.0,95064.0,0.1892987]
[1745886290863,0.39146684,95065.0,95064.0,0.1892987]
[1745886291061,0.39146684,95065.0,95064.0,0.2209987]
[1745886292065,0.20217014,95065.0,95064.0,0.2209987]
[1745886292266,0.39146684,95065.0,95064.0,0.2209987]
[1745886292468,0.42196684,95065.0,95064.0,0.2209987]
[1745886293070,0.23267014,95065.0,95064.0,0.2209987]
[1745886293873,0.42196684,95065.0,95064.0,0.2209987]
[1745886294272,0.3417967,95065.0,95064.0,0.2209987]
[1745886294465,0.3397967,95065.0,95064.0,0.2229987]
[1745886294869,0.3397967,95065.0,95064.0,0.2239987]
[1745886297674,0.3092967,95065.0,95064.0,0.2239987]
[1745886298265,0.12,95065.0,95064.0,0.2239987]
[1745886298666,0.12,95065.0,95064.0,0.2542987]
[1745886298868,0.3092967,95065.0,95064.0,0.2542987]
[1745886299772,0.44097014,95069.0,95064.0,0.2542987]
[1745886299773,0.44097014,95069.0,95068.0,0.1892908]
[1745886299965,0.0331,95075.0,95073.0,0.1892808]
[1745886300163,0.1892725,95079.0,95078.0,0.1892689]
[1745886300367,0.2223725,95079.0,95078.0,0.1892689]
[1745886301173,0.3092725,95079.0,95078.0,0.1892689]
[1745886301972,0.12,95079.0,95078.0,0.1892689]
[1745886302767,0.0328,95086.0,95081.0,0.0473157]
[1745886302967,0.2220549,95086.0,95085.0,0.1892569]
[1745886303766,0.2220549,95086.0,95085.0,0.3172759]
[1745886304166,0.3420549,95086.0,95085.0,0.3172759]
[1745886304375,0.3430549,95086.0,95085.0,0.3172759]
[1745886304575,0.121,95086.0,95085.0,0.3172759]
[1745886304780,0.033,95095.0,95094.0,0.189239]
[1745886305080,0.1892219,95103.0,95102.0,0.1892231]
[1745886305373,0.1892219,95103.0,95102.0,0.5500231]
[1745886305576,0.033,95105.0,95104.0,0.1892191]
[1745886305776,0.033,95105.0,95104.0,0.3392191]
[1745886305973,0.2222171,95105.0,95104.0,0.3392191]
[1745886307373,0.2222171,95105.0,95104.0,0.15]
[1745886307584,0.6096651,95105.0,95104.0,0.15]
[1745886307878,1.1354051,95105.0,95104.0,0.15]
[1745886308072,0.3596651,95105.0,95104.0,0.15]
[1745886308781,0.189243,95092.0,95091.0,0.3608]
[1745886309478,0.189243,95092.0,95091.0,0.550045]
[1745886309681,0.253643,95092.0,95091.0,0.550045]
[1745886310177,0.253643,95092.0,95091.0,0.551045]
[1745886310678,0.0313,95092.0,95091.0,0.681045]
[1745886310867,0.3608,95111.0,95091.0,0.85821705]
[1745886311179,0.1906972,95115.0,95114.0,0.1891992]
[1745886311378,0.0015,95115.0,95114.0,0.6799992]
[1745886311675,0.22247,95129.0,95114.0,0.4908]
[1745886311877,0.22247,95129.0,95128.0,0.1891714]
[1745886312283,0.03,95134.0,95128.0,0.4908]
[1745886312478,0.2364606,95132.0,95131.0,0.1891614]
[1745886313075,0.1891694,95129.0,95128.0,0.3608]
[1745886313473,0.1891694,95129.0,95128.0,0.5499714]
[1745886315282,0.1891694,95129.0,95128.0,0.3608]
[1745886316569,0.1891694,95129.0,95128.0,0.5499714]
[1745886316975,0.1891648,95132.0,95131.0,0.2364524]
[1745886317273,0.1891694,95129.0,95128.0,0.5972624]
[1745886317779,0.1891694,95129.0,95128.0,0.5499699]
[1745886318578,0.001,95136.0,95130.0,0.0472917]
[1745886318779,0.1891644,95134.0,95133.0,0.1891585]
[1745886319282,0.1891654,95131.0,95130.0,0.1891648]
[1745886322983,0.1891654,95131.0,95130.0,0.2201648]
[1745886327099,0.1891609,95134.0,95133.0,0.1891575]
[1745886327289,0.001,95136.0,95135.0,0.1891575]
[1745886327587,0.51068794,95144.0,95143.0,0.1891416]
[1745886328183,0.51068794,95144.0,95143.0,0.2522416]
[1745886328890,0.69982754,95144.0,95143.0,0.2522416]
[1745886329188,0.51068794,95144.0,95143.0,0.2522416]
[1745886329384,0.5,95144.0,95143.0,0.2522416]
[1745886329590,0.6891396,95144.0,95143.0,0.2522416]
[1745886330280,0.6891396,95144.0,95143.0,0.26008546]
[1745886336282,0.5,95144.0,95143.0,0.26008546]
[1745886337684,0.0015,95150.0,95149.0,0.1891296]
[1745886338280,0.0015,95150.0,95149.0,0.2538296]
[1745886338984,0.1906276,95150.0,95149.0,0.2538296]
[1745886339186,0.0015,95150.0,95149.0,0.2538296]
[1745886339593,0.1906276,95150.0,95149.0,0.2538296]
[1745886339792,0.0015,95150.0,95149.0,0.2538296]
[1745886339997,0.1906276,95150.0,95149.0,0.2538296]
[1745886340684,0.0015,95150.0,95149.0,0.2538296]
[1745886340893,0.1906276,95150.0,95149.0,0.2538296]
[1745886341499,0.1906276,95150.0,95149.0,0.0647]
[1745886341884,0.1891396,95144.0,95143.0,0.00784386]
[1745886342084,0.1891535,95137.0,95136.0,0.0802888]
[1745886342280,0.1891535,95137.0,95136.0,0.2221491]
[1745886342881,0.0313,95140.0,95131.0,0.3608]
[1745886343191,0.0313,95140.0,95131.0,0.5499636]
[1745886343192,0.1891634,95132.0,95131.0,0.5499636]
[1745886344990,0.1891634,95132.0,95131.0,0.5829636]
[1745886345189,0.1891634,95132.0,95131.0,0.59088451]
[1745886345780,0.1891634,95132.0,95131.0,0.59188451]
[1745886353593,0.0015,95150.0,95132.0,0.0472904]
[1745886353798,0.0015,95150.0,95149.0,0.3608]
[1745886353994,0.0015,95150.0,95141.0,0.3608]
[1745886354195,0.1891416,95143.0,95142.0,0.0332]
[1745886354395,0.1891416,95143.0,95142.0,0.0328]
[1745886354988,0.2547416,95143.0,95142.0,0.0328]
[1745886358704,0.1891595,95134.0,95133.0,0.26125705]
[1745886359404,0.1891595,95134.0,95133.0,0.29245705]
[1745886359597,0.1891595,95134.0,95133.0,0.0312]
[1745886360600,0.2507595,95134.0,95133.0,0.0312]
[1745886360901,0.2507595,95134.0,95133.0,0.0332]
[1745886362196,0.2507595,95134.0,95133.0,0.002]
[1745886362598,0.1891634,95132.0,95131.0,0.00792091]
[1745886362903,0.1891714,95128.0,95127.0,0.00157683]
[1745886363500,0.2514714,95128.0,95127.0,0.00157683]
[1745886363999,0.1891992,95114.0,95108.0,0.1892096]
[1745886364206,0.1891992,95114.0,95109.0,0.064]
[1745886364901,0.2206992,95114.0,95109.0,0.064]
[1745886365100,0.2206992,95114.0,95113.0,0.16371958]
[1745886365402,0.2206992,95114.0,95113.0,0.16771958]
[1745886366803,0.2206992,95114.0,95113.0,0.17551833]
[1745886367602,0.2206992,95114.0,95113.0,0.01479875]
[1745886369502,0.2524992,95114.0,95113.0,0.01479875]
[1745886371709,0.3191392,95114.0,95113.0,0.01479875]
[1745886374605,0.2558392,95114.0,95113.0,0.01479875]
[1745886374998,0.1891992,95114.0,95113.0,0.01479875]
[1745886376402,0.2213992,95114.0,95113.0,0.01479875]
[1745886376802,0.2538992,95114.0,95113.0,0.01479875]
[1745886377706,0.3205392,95114.0,95113.0,0.01479875]
[1745886378008,0.2558392,95114.0,95113.0,0.01479875]
[1745886380004,0.1891992,95114.0,95113.0,0.01479875]
[1745886381801,0.2517992,95114.0,95113.0,0.01479875]
[1745886382004,0.2868392,95114.0,95113.0,0.01479875]
[1745886384113,0.10695784,95129.0,95113.0,0.37559875]
[1745886384318,0.1891873,95120.0,95119.0,0.1891891]
[1745886385713,0.1891893,95119.0,95118.0,0.0317]
[1745886386102,0.1891893,95119.0,95118.0,0.2208913]
[1745886386907,0.1891893,95119.0,95118.0,0.2228913]
[1745886387513,0.1891893,95119.0,95118.0,0.0337]
[1745886388306,0.1891893,95119.0,95118.0,0.0377]
[1745886389414,0.1891893,95119.0,95118.0,0.0387]
[1745886390110,0.1891893,95119.0,95118.0,0.0377]
[1745886390715,0.1891893,95119.0,95118.0,0.007]
[1745886391518,0.2557893,95119.0,95118.0,0.006]
[1745886392614,0.2557893,95119.0,95118.0,0.005]
[1745886393217,0.3609213,95119.0,95118.0,0.005]
[1745886394513,0.3609213,95119.0,95106.0,0.0314]
[1745886394514,0.1892132,95107.0,95106.0,0.0314]
[1745886394709,0.5500132,95107.0,95106.0,0.0314]
[1745886396023,0.1892132,95107.0,95106.0,0.0314]
[1745886396211,0.5829132,95107.0,95106.0,0.009]
[1745886396412,0.6145132,95107.0,95106.0,0.009]
[1745886397113,0.6145132,95107.0,95106.0,0.0392]
[1745886397309,0.6145132,95107.0,95106.0,0.04720833]
[1745886398218,0.72143647,95107.0,95106.0,0.04720833]
[1745886400613,0.72143647,95107.0,95106.0,0.009]
[1745886400818,0.1892291,95099.0,95098.0,0.0322]
[1745886401012,0.1892291,95099.0,95081.0,0.26125705]
[1745886401013,0.1892629,95082.0,95081.0,0.26125705]
[1745886401217,0.1892629,95082.0,95078.0,0.00157741]
[1745886401218,0.1892649,95081.0,95080.0,0.0321]
[1745886401522,0.1892649,95081.0,95078.0,0.00157741]
[1745886401523,0.1892689,95079.0,95078.0,0.00157741]
[1745886401818,0.1892689,95079.0,95078.0,0.00960773]
[1745886402019,0.1892689,95079.0,95078.0,0.00157741]
[1745886402414,0.2508689,95079.0,95078.0,0.00157741]
[1745886402717,0.26121067,95079.0,95078.0,0.00157741]
[1745886402915,0.26121067,95079.0,95078.0,0.00257741]
[1745886403424,0.26121067,95079.0,95078.0,0.00357741]
[1745886404528,0.26121067,95079.0,95078.0,0.01129538]
[1745886405817,0.19961067,95079.0,95078.0,0.01129538]
[1745886406022,0.26625067,95079.0,95078.0,0.01129538]
[1745886406728,0.26625067,95079.0,95078.0,0.04349538]
[1745886410519,0.26625067,95079.0,95078.0,0.04191797]
[1745886412529,0.2203689,95079.0,95078.0,0.04191797]
[1745886412730,0.5811689,95079.0,95078.0,0.002]
[1745886412933,0.45854,95079.0,95060.0,0.3608]
[1745886413227,0.1893007,95063.0,95062.0,0.01]
[1745886414029,0.1893007,95063.0,95062.0,0.01778416]
[1745886415043,0.1893007,95063.0,95062.0,0.02278416]
[1745886415430,0.1893007,95063.0,95062.0,0.02678416]
[1745886421045,0.1893007,95063.0,95062.0,0.05698416]
[1745886423043,0.1893326,95047.0,95046.0,0.26125705]
[1745886423235,0.1893326,95047.0,95046.0,0.17104037]
[1745886423550,0.1893326,95047.0,95046.0,0.10641401]
[1745886423847,0.1893326,95047.0,95046.0,0.22641401]
[1745886424046,0.1139725,95049.0,95046.0,0.22641401]
[1745886424047,0.1893288,95049.0,95046.0,0.22641401]
[1745886424237,0.1893165,95056.0,95051.0,0.0473311]
[1745886424436,0.0473266,95060.0,95052.0,0.032]
[1745886424635,0.1893199,95055.0,95054.0,0.1893169]
[1745886424836,0.1893199,95055.0,95054.0,0.4067169]
[1745886425041,0.1893199,95055.0,95054.0,0.2174]
[1745886425938,0.1913199,95055.0,95054.0,0.2174]
[1745886427941,0.1903199,95055.0,95054.0,0.2174]
[1745886428140,0.1913199,95055.0,95054.0,0.2174]
[1745886431344,0.002,95055.0,95054.0,0.4067187]
[1745886432151,0.1913167,95055.0,95054.0,0.4067187]
[1745886433546,0.1913167,95055.0,95054.0,0.2174]
[1745886434547,0.1903167,95055.0,95054.0,0.2174]
[1745886435053,0.1913167,95055.0,95054.0,0.4067187]
[1745886437444,0.1913167,95055.0,95054.0,0.7675187]
[1745886439053,0.1913167,95055.0,95054.0,0.4067187]
[1745886439255,0.1913167,95055.0,95054.0,0.7675187]
[1745886443552,0.1913167,95055.0,95054.0,0.5782]
[1745886444753,0.1903167,95055.0,95054.0,0.7675187]
[1745886444948,0.1913167,95055.0,95054.0,0.7675187]
[1745886446751,0.002,95055.0,95054.0,0.94603671]
[1745886446950,0.1139625,95069.0,95063.0,0.1893007]
[1745886447163,0.06664,95069.0,95063.0,0.7101007]
[1745886447353,0.1892976,95065.0,95063.0,0.7101007]
[1745886447554,0.1892976,95065.0,95063.0,0.72575185]
[1745886447757,0.26911785,95064.0,95063.0,0.78945185]
[1745886448256,0.07981915,95064.0,95063.0,0.89464385]
[1745886448467,0.07981915,95064.0,95063.0,0.90700516]
[1745886449554,0.07981915,95064.0,95063.0,0.89135401]
[1745886450055,0.189283,95072.0,95063.0,0.89135401]
[1745886450255,0.189283,95072.0,95071.0,0.5500848]
[1745886450467,0.189283,95072.0,95071.0,0.7000848]
[1745886450664,0.189283,95072.0,95071.0,0.71563157]
[1745886450860,0.07981915,95075.0,95074.0,0.1892788]
[1745886451060,0.07981915,95075.0,95074.0,0.35482557]
[1745886451659,0.26909595,95075.0,95074.0,0.35482557]
[1745886452470,0.26909595,95075.0,95074.0,0.35682557]
[1745886453161,0.30009595,95075.0,95074.0,0.35682557]
[1745886453470,0.30009595,95075.0,95074.0,0.43016917]
[1745886453669,0.11081915,95075.0,95074.0,0.43016917]
[1745886453871,0.11081915,95075.0,95074.0,0.43116917]
[1745886454366,0.031,95075.0,95074.0,0.43016917]
[1745886454670,0.0015,95080.0,95079.0,0.1892689]
[1745886454863,0.1907677,95080.0,95079.0,0.56564526]
[1745886455064,0.1907677,95080.0,95079.0,0.5965224]
[1745886456864,0.2560677,95080.0,95079.0,0.5965224]
[1745886457064,0.2560677,95080.0,95079.0,0.5658224]
[1745886457667,0.2560677,95080.0,95079.0,0.5500689]
[1745886460163,0.2560677,95080.0,95079.0,0.5818689]
[1745886460870,0.2560677,95080.0,95079.0,0.3926]
[1745886463769,0.2560677,95080.0,95079.0,0.40810319]
[1745886464960,0.2560677,95080.0,95079.0,0.40810175]
[1745886465368,0.2560677,95080.0,95079.0,0.37630175]
[1745886465558,0.2560677,95080.0,95079.0,0.01550175]
[1745886465764,0.1892689,95079.0,95078.0,0.0301]
[1745886466165,0.2551689,95079.0,95078.0,0.0301]
[1745886466670,0.2551689,95079.0,95078.0,0.04563767]
[1745886468764,0.2551689,95079.0,95078.0,0.04560795]
[1745886470670,0.2551689,95079.0,95078.0,0.04562506]
[1745886472177,0.2551689,95079.0,95078.0,0.01552506]
[1745886473170,0.1892768,95075.0,95074.0,0.07331401]
[1745886473371,0.1892768,95075.0,95074.0,0.08892965]
[1745886474072,0.2530768,95075.0,95074.0,0.08892965]
[1745886474883,0.2530768,95075.0,95074.0,0.08992965]
[1745886475573,0.2205768,95075.0,95074.0,0.09092965]
[1745886476875,0.2205768,95075.0,95074.0,0.12142965]
[1745886477069,0.2205768,95075.0,95074.0,0.04811564]
[1745886478364,0.2518768,95075.0,95074.0,0.04811564]
[1745886478568,0.2518768,95075.0,95074.0,0.04838659]
[1745886479169,0.2518768,95075.0,95074.0,0.0325]
[1745886479371,0.2518768,95075.0,95074.0,0.04833925]
[1745886480070,0.2518768,95075.0,95074.0,0.0325]
[1745886480071,0.33169595,95075.0,95074.0,0.0325]
[1745886480269,0.33169595,95075.0,95074.0,0.04833925]
[1745886480671,0.33169595,95075.0,95074.0,0.04833915]
[1745886481566,0.33169595,95075.0,95074.0,0.0325]
[1745886481766,0.33169595,95075.0,95074.0,0.04830897]
[1745886481967,0.33169595,95075.0,95074.0,0.0325]
[1745886482274,0.33169595,95075.0,95074.0,0.04830897]
[1745886482965,0.30039595,95075.0,95074.0,0.04830897]
[1745886483169,0.30039595,95075.0,95074.0,0.01780897]
[1745886483371,0.66119595,95075.0,95074.0,0.01780897]
[1745886483573,0.0473198,95074.0,95061.0,0.07331401]
[1745886483766,0.1893027,95062.0,95061.0,0.01497972]
[1745886483969,0.1893027,95062.0,95061.0,0.03056421]
[1745886484168,0.2944987,95062.0,95061.0,0.03056421]
[1745886484371,0.2944987,95062.0,95061.0,0.01497972]
[1745886484570,0.3577987,95062.0,95061.0,0.01497972]
[1745886484979,0.3597987,95062.0,95061.0,0.01497972]
[1745886486181,0.2546027,95062.0,95061.0,0.01497972]
[1745886486571,0.2576027,95062.0,95061.0,0.01497972]
[1745886486778,0.36452597,95062.0,95061.0,0.01497972]
[1745886488669,0.1893147,95056.0,95055.0,0.033]
[1745886489069,0.1893147,95056.0,95055.0,0.0631]
[1745886489275,0.1893147,95056.0,95055.0,0.033]
[1745886490072,0.1903147,95056.0,95055.0,0.033]
[1745886490576,0.2009882,95056.0,95055.0,0.033]
[1745886491279,0.2019882,95056.0,95055.0,0.033]
[1745886496778,0.002,95056.0,95055.0,0.3623167]
[1745886496984,0.002,95056.0,95055.0,0.6123167]
[1745886497170,0.002,95056.0,95055.0,1.2435267]
[1745886498078,0.002,95056.0,95055.0,0.7175167]
[1745886498790,0.001,95056.0,95055.0,0.7185167]
[1745886498976,0.001,95056.0,95055.0,0.4685167]
[1745886499282,0.1893055,95061.0,95060.0,0.1893067]
[1745886499481,0.1893055,95061.0,95060.0,0.6901067]
[1745886500177,0.1893055,95061.0,95060.0,0.7534067]
[1745886505287,0.1893055,95061.0,95060.0,0.3926067]
[1745886505489,0.1893055,95061.0,95060.0,0.7534067]
[1745886510793,0.2366254,95066.0,95065.0,0.1892967]
[1745886511588,0.2366254,95066.0,95065.0,0.2510967]
[1745886512489,0.2376254,95066.0,95065.0,0.2510967]
[1745886512798,0.2386254,95066.0,95065.0,0.2510967]
[1745886514284,0.2376254,95066.0,95065.0,0.2510967]
[1745886514594,0.2386254,95066.0,95065.0,0.2510967]
[1745886518098,0.2386254,95066.0,95065.0,0.0618]
[1745886525499,0.2718254,95066.0,95065.0,0.0304]
[1745886526806,0.2708254,95066.0,95065.0,0.0304]
[1745886527006,0.2718254,95066.0,95065.0,0.0304]
[1745886527206,0.2708254,95066.0,95065.0,0.0304]
[1745886527409,0.2718254,95066.0,95065.0,0.0304]
[1745886529406,0.1893027,95062.0,95061.0,0.0315]
[1745886529709,0.1893027,95062.0,95061.0,0.0415]
[1745886530921,0.2213027,95062.0,95061.0,0.0733]
[1745886532403,0.2213027,95062.0,95061.0,0.1051]
[1745886532702,0.2223027,95062.0,95061.0,0.1051]
[1745886533112,0.2213027,95062.0,95061.0,0.1051]
[1745886533311,0.2223027,95062.0,95061.0,0.1051]
[1745886533915,0.2233027,95062.0,95061.0,0.1051]
[1745886534617,0.2223027,95062.0,95061.0,0.1051]
[1745886534805,0.2233027,95062.0,95061.0,0.1206484]
[1745886537220,0.2233027,95062.0,95061.0,0.3099531]
[1745886539419,0.1913027,95062.0,95061.0,0.3099531]
[1745886540716,0.1913027,95062.0,95061.0,0.31024206]
[1745886542717,0.1913027,95062.0,95061.0,0.31019846]
[1745886543810,0.1913027,95062.0,95061.0,0.2944047]
[1745886545115,0.1893027,95062.0,95061.0,0.2944047]
[1745886546419,0.1903027,95062.0,95061.0,0.2944047]
[1745886550721,0.001,95062.0,95061.0,0.2944047]
[1745886553014,0.26950176,95066.0,95065.0,0.1892967]
[1745886554020,0.26950176,95066.0,95065.0,0.2508967]
[1745886554521,0.08020596,95066.0,95065.0,0.7316967]
[1745886555128,0.1892835,95072.0,95071.0,0.1892848]
[1745886555312,0.1892835,95072.0,95071.0,0.3292848]
[1745886555924,0.1892835,95072.0,95071.0,0.3914848]
[1745886556224,0.1892835,95072.0,95071.0,0.3924848]
[1745886556427,0.1892835,95072.0,95071.0,0.2524848]
[1745886556728,0.1892835,95072.0,95071.0,0.3824848]
[1745886556918,0.1892835,95072.0,95071.0,0.07973137]
[1745886557225,0.2534835,95072.0,95071.0,0.07973137]
[1745886557829,0.2534835,95072.0,95071.0,0.26901617]
[1745886558030,0.2534835,95072.0,95071.0,0.2534848]
[1745886558327,0.2534835,95072.0,95071.0,0.2524848]
[1745886559434,0.1892835,95072.0,95071.0,0.2524848]
[1745886559619,0.1892835,95072.0,95071.0,0.2514848]
[1745886561729,0.0309,95075.0,95074.0,0.1892788]
[1745886562029,0.08170596,95080.0,95079.0,0.1892689]
[1745886562324,0.08170596,95080.0,95079.0,0.6700689]
[1745886563022,0.08170596,95080.0,95079.0,0.7328689]
[1745886563227,0.08170596,95080.0,95079.0,0.8528689]
[1745886563430,0.0015,95080.0,95079.0,0.7328689]
[1745886563620,0.0015,95080.0,95079.0,0.7338689]
[1745886564215,0.0015,95080.0,95079.0,0.6138689]
[1745886564831,0.1907669,95080.0,95079.0,0.6138689]
[1745886565422,0.1907669,95080.0,95079.0,0.6128689]
[1745886565617,0.1907669,95080.0,95079.0,0.6138689]
[1745886566325,0.1907669,95080.0,95079.0,0.6128689]
[1745886568029,0.2239669,95080.0,95079.0,0.6128689]
[1745886570126,0.0015,95080.0,95079.0,0.6128689]
[1745886571327,0.1907669,95080.0,95079.0,0.6128689]
[1745886571527,0.1907669,95080.0,95079.0,0.6138689]
[1745886573738,0.1907669,95080.0,95079.0,0.62884862]
[1745886573938,0.1907669,95080.0,95079.0,0.62784862]
[1745886574438,0.0015,95080.0,95079.0,0.62784862]
[1745886576634,0.0015,95080.0,95079.0,0.62884862]
[1745886577542,0.0015,95080.0,95079.0,0.62984862]
[1745886579038,0.0015,95080.0,95079.0,0.62884862]
[1745886579238,0.0015,95080.0,95079.0,0.62984862]
[1745886579239,0.0345,95080.0,95079.0,0.62984862]
[1745886579637,0.2237669,95080.0,95079.0,0.62984862]
[1745886580636,0.2237669,95080.0,95079.0,0.62884862]
[1745886580830,0.2237669,95080.0,95079.0,0.62984862]
[1745886581840,0.2237669,95080.0,95079.0,0.62884862]
[1745886585138,0.2237669,95080.0,95079.0,0.62784862]
[1745886587644,0.2237669,95080.0,95079.0,0.62884862]
[1745886587838,0.2237669,95080.0,95079.0,0.37677972]
[1745886588749,0.2237669,95080.0,95079.0,0.37577972]
[1745886591443,0.2237669,95080.0,95079.0,0.3608]
[1745886591848,0.1892709,95078.0,95077.0,0.0306]
[1745886593042,0.1892888,95069.0,95059.0,0.3608]
[1745886593346,0.1892888,95069.0,95065.0,0.0309]
[1745886593842,0.1892888,95069.0,95066.0,0.1892939]
[1745886594045,0.2203888,95069.0,95065.0,0.0309]
[1745886594241,0.2529888,95069.0,95066.0,0.0327]
[1745886594439,0.2529888,95069.0,95068.0,0.3628]
[1745886594741,0.2529888,95069.0,95068.0,0.3658]
[1745886595435,0.2218888,95069.0,95068.0,0.3658]
[1745886597742,0.2218888,95069.0,95068.0,0.5550908]
[1745886597950,0.2218888,95069.0,95068.0,0.3658]
[1745886599241,0.2218888,95069.0,95068.0,0.4858]
[1745886599443,0.1892848,95074.0,95073.0,0.1892788]
[1745886599643,0.08020596,95075.0,95074.0,0.1892788]
[1745886599947,0.26948276,95075.0,95074.0,0.3192788]
[1745886600452,0.1892768,95075.0,95074.0,0.3192788]
[1745886600851,0.1892768,95075.0,95074.0,0.3202788]
[1745886601151,0.08020596,95077.0,95076.0,0.1892748]
[1745886601448,0.26947886,95077.0,95076.0,0.3192748]
[1745886602754,0.26947886,95077.0,95076.0,0.3202748]
[1745886603559,0.08020596,95077.0,95076.0,0.3202748]
[1745886604351,0.1892692,95079.0,95078.0,0.1892709]
[1745886604552,0.1892692,95079.0,95078.0,0.7056838]
[1745886606349,0.0015,95080.0,95079.0,0.1892689]
[1745886606542,0.0015,95080.0,95079.0,0.3448818]
[1745886609047,0.0015,95080.0,95079.0,0.35986152]
[1745886611151,0.0015,95080.0,95079.0,0.39146152]
[1745886611543,0.0015,95080.0,95079.0,0.39228214]
[1745886611743,0.08020596,95090.0,95089.0,0.189249]
[1745886611945,0.26945296,95090.0,95089.0,0.68648252]
[1745886612548,0.08020596,95090.0,95089.0,0.71808252]
[1745886612752,0.08020596,95091.0,95090.0,0.189247]
[1745886612940,0.08020596,95091.0,95090.0,0.29568052]
[1745886613141,0.08020596,95091.0,95090.0,0.35928052]
[1745886614041,0.0473032,95108.0,95098.0,0.1892311]
[1745886614248,0.1892265,95101.0,95098.0,0.66646462]
[1745886614447,0.1892218,95103.0,95098.0,0.66646462]
[1745886614851,0.01073537,95103.0,95098.0,0.72896462]
[1745886615053,0.1892257,95101.0,95098.0,0.72896462]
[1745886616155,0.2683251,95104.0,95098.0,0.72896462]
[1745886616347,0.11092327,95099.0,95098.0,0.72896462]
[1745886616549,0.11392327,95099.0,95098.0,0.72896462]
[1745886616852,0.001,95106.0,95105.0,0.1892171]
[1745886617056,0.001,95106.0,95105.0,0.35565062]
[1745886617840,0.001,95106.0,95105.0,0.41965062]
[1745886618044,0.1892089,95110.0,95109.0,0.2365071]
[1745886618258,0.1892089,95110.0,95109.0,0.74374062]
[1745886618458,0.1892089,95110.0,95109.0,0.69643872]
[1745886618647,0.1892089,95110.0,95109.0,0.76043872]
[1745886618952,0.1892089,95110.0,95109.0,0.57123352]
[1745886619159,0.2530089,95110.0,95109.0,0.44123352]
[1745886619450,0.2530089,95110.0,95109.0,0.08043352]
[1745886619650,0.2530089,95110.0,95109.0,0.01743352]
[1745886619852,0.2530089,95110.0,95109.0,0.001]
[1745886620044,0.1892151,95106.0,95105.0,0.0345]
[1745886620356,0.1892151,95106.0,95105.0,0.04815432]
[1745886620557,0.1892151,95106.0,95105.0,0.07925432]
[1745886620942,0.2223151,95106.0,95105.0,0.07925432]
[1745886621147,0.2223151,95106.0,95105.0,0.08125432]
[1745886621353,0.2223151,95106.0,95105.0,0.01765432]
[1745886622245,0.2223151,95106.0,95105.0,0.002]
[1745886622859,0.2223151,95106.0,95105.0,0.004]
[1745886623162,0.2223151,95106.0,95105.0,0.003]
[1745886623858,0.2223151,95106.0,95105.0,0.005]
[1745886625968,0.5831151,95106.0,95105.0,0.005]
[1745886626258,0.7355672,95106.0,95105.0,0.002]
[1745886626959,0.7355672,95106.0,95105.0,0.001]
[1745886627162,0.7355672,95106.0,95105.0,0.002]
[1745886627350,0.7355672,95106.0,95105.0,0.001]
[1745886627862,0.1892291,95099.0,95098.0,0.0077665]
[1745886628061,0.1892291,95099.0,95098.0,0.01]
[1745886628650,0.2548291,95099.0,95098.0,0.01]
[1745886630358,0.2548291,95099.0,95098.0,0.01776432]
[1745886630949,0.2548291,95099.0,95098.0,0.01876432]
[1745886632363,0.2548291,95099.0,95098.0,0.01976432]
[1745886632867,0.2548291,95099.0,95098.0,0.01876432]
[1745886633163,0.2548291,95099.0,95098.0,0.01976432]
[1745886633761,0.3599851,95099.0,95098.0,0.00976432]
[1745886633961,0.4264251,95099.0,95098.0,0.00876432]
[1745886634265,0.3212691,95099.0,95098.0,0.00976432]
[1745886634561,0.2548291,95099.0,95098.0,0.00976432]
[1745886635562,0.2558291,95099.0,95098.0,0.00776432]
[1745886635763,0.189245,95091.0,95090.0,0.10496]
[1745886636064,0.189245,95091.0,95090.0,0.12049684]
[1745886636251,0.189245,95091.0,95090.0,0.10496]
[1745886637059,0.189245,95091.0,95090.0,0.294207]
[1745886637261,0.1892414,95093.0,95092.0,0.2365493]
[1745886637860,0.1892414,95093.0,95092.0,0.189239]
[1745886638860,0.1892414,95093.0,95092.0,0.191239]
[1745886639165,0.1892414,95093.0,95092.0,0.01006114]
[1745886639459,0.2225414,95093.0,95092.0,0.01006114]
[1745886639662,0.1892414,95093.0,95092.0,0.01006114]
[1745886639965,0.1892414,95093.0,95092.0,0.01306114]
[1745886640265,0.1892414,95093.0,95092.0,0.01106114]
[1745886640565,0.1892414,95093.0,95092.0,0.01306114]
[1745886641665,0.1892414,95093.0,95092.0,0.01206114]
[1745886642463,0.2224414,95093.0,95092.0,0.01206114]
[1745886643165,0.1892414,95093.0,95092.0,0.01206114]
[1745886643372,0.1892414,95093.0,95092.0,0.20130414]
[1745886643669,0.1892366,95096.0,95095.0,0.189233]
[1745886644569,0.1892366,95096.0,95095.0,0.219633]
[1745886645875,0.1892366,95096.0,95095.0,0.221633]
[1745886646060,0.1892366,95096.0,95095.0,0.0324]
[1745886646261,0.1892366,95096.0,95095.0,0.0304]
[1745886646466,0.1892366,95096.0,95095.0,0.0354]
[1745886646769,0.1892366,95096.0,95095.0,0.0334]
[1745886646969,0.1892366,95096.0,95095.0,0.0354]
[1745886647157,0.1892366,95096.0,95095.0,0.0324]
[1745886647357,0.1892366,95096.0,95095.0,0.0344]
[1745886648376,0.1892366,95096.0,95095.0,0.0324]
[1745886648571,0.1892366,95096.0,95095.0,0.0344]
[1745886648965,0.1892366,95096.0,95095.0,0.0324]
[1745886649264,0.1892366,95096.0,95095.0,0.0344]
[1745886651175,0.1892366,95096.0,95095.0,0.223637]